lending/lending_fUSD_20240512
["ID","MTS","AMOUNT","RATE_DAILY","PERIOD"]
[326841955,1715506234040,-432.2412,0.000129,2]
[326841956,1715506234050,-171.17183142,0.000129,2]
[326841957,1715506234060,-501.0,0.000129,2]
[326841958,1715506234070,-1000.0,0.000129,2]
[326841959,1715506234081,-17615.82022825,0.000129,2]
[326841960,1715506234091,-1500.0,0.00012901,2]
[326841961,1715506234102,-150.0,0.00012902,2]
[326841962,1715506234112,-150.0,0.00012904,2]
[326841963,1715506234123,-150.0,0.00012906,2]
[326841964,1715506234132,-150.0,0.00012911,2]
[326841965,1715506234142,-150.0,0.00012912,2]
[326841966,1715506234152,-1500.0,0.00012915,2]
[326841967,1715506234161,-150.0,0.00012918,2]
[326841968,1715506234171,-150.0,0.00012919,2]
[326841969,1715506234180,-1500.0,0.00012919,2]
[326841970,1715506234190,-150.0,0.00012919,2]
[326841971,1715506234200,-150.0,0.0001292,2]
[326841972,1715506234210,-1500.0,0.0001292,2]
[326841973,1715506234219,-1500.0,0.00012922,2]
[326841974,1715506234229,-150.0,0.00012924,2]
[326841975,1715506234238,-150.0,0.00012929,2]
[326841976,1715506234248,-150.0,0.0001293,2]
[326841977,1715506234257,-150.0,0.00012932,2]
[326841978,1715506234267,-1000.0,0.00012935,2]
[326841979,1715506234278,-1070.2058,0.00012935,2]
[326841980,1715506234287,-150.0,0.00012936,2]
[326841981,1715506234297,-150.0,0.0001294,2]
[326841982,1715506234306,-150.0,0.0001294,2]
[326841983,1715506234316,-150.0,0.0001294,2]
[326841984,1715506234325,-150.0,0.00012941,2]
[326841985,1715506234335,-150.0,0.00012941,2]
[326841986,1715506234344,-1500.0,0.00012943,2]
[326841987,1715506234354,-1500.0,0.00012946,2]
[326841988,1715506234363,-150.0,0.00012949,2]
[326841989,1715506234372,-150.0,0.00012949,2]
[326841990,1715506234382,-150.0,0.00012953,2]
[326841991,1715506234391,-150.0,0.00012956,2]
[326841992,1715506234400,-150.0,0.00012956,2]
[326841993,1715506234409,-1500.0,0.00012959,2]
[326841994,1715506234419,-150.0,0.00012962,2]
[326841995,1715506234428,-150.0,0.00012964,2]
[326841996,1715506234437,-1500.0,0.00012966,2]
[326841997,1715506234446,-400.81,0.00012967,2]
[326841998,1715506234456,-400.81,0.00012967,2]
[326841999,1715506234465,-400.81,0.00012967,2]
[326842000,1715506234474,-400.81,0.00012967,2]
[326842001,1715506234484,-400.81,0.00012967,2]
[326842002,1715506234493,-3143.9254399,0.00012968,2]
[326842003,1715506234502,-1500.0,0.00012968,2]
[326842004,1715506234513,-150.0,0.00012969,2]
[326842005,1715506234522,-400.81,0.0001297,2]
[326842006,1715506234531,-400.81,0.0001297,2]
[326842007,1715506234540,-400.81,0.0001297,2]
[326842008,1715506234550,-150.0,0.00012971,2]
[326842009,1715506234559,-1500.0,0.00012974,2]
[326842010,1715506234570,-1244.07608954,0.00012975,2]
[326842011,1715506234580,-155.0,0.00012975,2]
[326842012,1715506234589,-577.02973015,0.00012976,2]
[326842013,1715506234599,-460623.92468437,0.00012977,2]
[326842014,1715506234613,-48327.03824603,0.00012977,2]
[326842022,1715506238153,-334862.98230419,0.00012977,2]
[326842023,1715506238164,-19165.17255342,0.00012977,2]
[326842024,1715506238174,-151.0,0.00012977,2]
[326842025,1715506238183,-662.189529,0.00012977,2]
[326842026,1715506238193,-150.0,0.00012978,2]
[326842027,1715506238202,-1500.0,0.00012978,2]
[326842029,1715506238212,-79096.21153706,0.0001298,2]
[326842031,1715506238221,-774951.27510251,0.0001298,2]
[326842068,1715506240126,-180.3482399,0.00012967,2]
[326842069,1715506240137,-180.3482399,0.0001297,2]
[326842070,1715506240146,-180.3482399,0.0001297,2]
[326842071,1715506240156,-360.912086,0.00012977,2]
[326842072,1715506240165,-195.55577304,0.0001298,2]
[326842073,1715506240423,-4625.4388211,0.0001298,2]
[326842108,1715506243167,-4500.89300447,0.0001298,2]
[326842109,1715506243179,-345.30254868,0.0001298,2]
[326842110,1715506243464,-1094.51766,0.0001298,2]
[326842111,1715506243476,-628.18,0.0001298,2]
[326842112,1715506243522,-119696.42474715,0.0001298,2]
[326842123,1715506245908,-270.42728545,0.00012977,2]
[326842124,1715506245951,-391.76224355,0.00012977,2]
[326842125,1715506245961,-156.45500196,0.00012979,2]
[326842126,1715506245971,-370.53954449,0.00012979,2]
[326842127,1715506245996,-59.2307649,0.00012979,2]
[326842128,1715506246005,-302.35212156,0.00012979,2]
[326842129,1715506246147,-9696.56150344,0.00012979,2]
[326842130,1715506246156,-14272.77635465,0.0001298,2]
[326842131,1715506246167,-537.07638197,0.0001298,2]
[326842132,1715506246178,-1523.78274965,0.0001298,2]
[326842133,1715506246190,-3093.54675111,0.0001298,2]
[326842134,1715506246201,-1866.206,0.0001298,2]
[326842135,1715506246212,-10308.21310073,0.0001298,2]
[326842136,1715506246223,-627.44,0.0001298,2]
[326842137,1715506246234,-2106.90206419,0.0001298,2]
[326843181,1715507109798,3011.83,0.00025,120]
[326843185,1715507432265,-155.0,0.00011634,2]
[326843186,1715507432275,-192.17383712,0.00011635,2]
[326843187,1715507432284,-250.0,0.00011723,2]
[326843188,1715507432295,-2916.1324472,0.00011734,2]
[326843189,1715507432306,-305.95,0.00011735,2]
[326843190,1715507432315,-5280.93725067,0.00011741,2]
[326843200,1715507438155,-150.0,0.00011711,2]
[326843201,1715507438166,-18619.06274933,0.00011741,2]
[326843202,1715507438175,-250.0,0.00011744,2]
[326843203,1715507438187,-600.0,0.00011749,2]
[326843204,1715507438196,-12958.0534,0.00011757,2]
[326843205,1715507438205,-150.0,0.00011836,2]
[326843206,1715507438214,-226.86,0.00011857,2]
[326843207,1715507438223,-499.99,0.00011857,2]
[326843208,1715507438233,-2385.05,0.00011858,2]
[326843209,1715507438243,-400.0,0.00011897,2]
[326843210,1715507438252,-198.64,0.00011906,2]
[326843211,1715507438262,-1087.34729514,0.0001272,2]
[326843212,1715507438272,-1500.0,0.00012766,2]
[326843213,1715507438281,-659.5783,0.0001278,2]
[326843214,1715507438291,-150.0,0.00012787,2]
[326843215,1715507438309,-1563.06983317,0.0001282,2]
[326843216,1715507438318,-150.0,0.00012828,2]
[326843217,1715507438327,-1500.0,0.00012848,2]
[326843218,1715507438339,-1500.0,0.00012872,2]
[326843219,1715507438352,-10000.0,0.0001288,2]
[326843220,1715507438362,-2026.65391547,0.0001288,2]
[326843221,1715507438376,-1171.11856861,0.0001288,2]
[326843222,1715507438409,-873.81182588,0.0001288,2]
[326843223,1715507438509,-368.4034386,0.0001288,2]
[326843224,1715507438523,-545.03939917,0.0001288,2]
[326843225,1715507438535,-12934.04625542,0.0001288,2]
[326843228,1715507438574,-5939.92759685,0.0001288,2]
[326843229,1715507438583,-4860.8733,0.0001288,2]
[326843230,1715507438592,-344.68046228,0.0001288,2]
[326843231,1715507438601,-200.0,0.00012889,2]
[326843232,1715507438610,-1000.0,0.00012895,2]
[326843233,1715507438619,-1500.0,0.00012895,2]
[326843235,1715507438629,-200.0,0.00012896,2]
[326843237,1715507438638,-1000.0,0.00012896,2]
[326843238,1715507438647,-500.0,0.00012896,2]
[326843239,1715507438656,-1500.0,0.00012898,2]
[326843240,1715507438665,-150.0,0.00012898,2]
[326843241,1715507438674,-1500.0,0.00012899,2]
[326843242,1715507438682,-150.0,0.00012899,2]
[326843243,1715507438692,-164.37868485,0.000129,2]
[326843244,1715507438702,-164.37868482,0.000129,2]
[326843245,1715507438711,-164.37868482,0.000129,2]
[326843246,1715507438720,-164.37868482,0.000129,2]
[326843247,1715507438729,-150.47,0.000129,2]
[326843248,1715507438738,-344.68046228,0.000129,2]
[326843249,1715507438747,-150.0,0.00012916,2]
[326843250,1715507438756,-1500.0,0.00012918,2]
[326843251,1715507438766,-1500.0,0.00012924,2]
[326843252,1715507438776,-1500.0,0.00012929,2]
[326843253,1715507438785,-800.0,0.00012959,2]
[326843254,1715507438794,-19165.17255342,0.00012977,2]
[326843255,1715507438803,-535.13320909,0.00012978,2]
[326843256,1715507438812,-156.08772152,0.00012978,2]
[326843257,1715507438821,-274.61910239,0.00012978,2]
[326843258,1715507438831,-190.46950754,0.00012978,2]
[326843259,1715507438840,-645.13621504,0.00012979,2]
[326843260,1715507438849,-8348.74435627,0.00012979,2]
[326843261,1715507438858,-361.30312926,0.00012979,2]
[326843262,1715507438867,-82045.09740252,0.0001298,2]
[326843263,1715507438876,-738505.93896422,0.0001298,2]
[326843265,1715507440627,-558.10698599,0.0001298,2]
[326843283,1715507446212,-1050.0,0.000128,2]
[326843284,1715507446439,-1311.76986435,0.000128,2]
[326843285,1715507446448,-155.0,0.00012979,2]
[326843286,1715507446457,-213.86929005,0.0001298,2]
[326843287,1715507446602,-1207.22335713,0.0001298,2]
[326843315,1715508560111,-938.73301384,8.039e-05,2]
[326843316,1715508560131,-783.04826993,8.039e-05,2]
[326843317,1715508560151,-155.0,8.04e-05,2]
[326843318,1715508560170,-862.84824896,8.04e-05,2]
[326843322,1715508632285,-530.0,8.031e-05,2]
[326843330,1715508632386,-2386.1324472,8.031e-05,2]
[326843331,1715508632396,-8362.96245245,8.032e-05,2]
[326843332,1715508632406,-155.0,8.032e-05,2]
[326843333,1715508632415,-162.46980569,8.032e-05,2]
[326843334,1715508632424,-1379.74444204,8.033e-05,2]
[326843335,1715508632434,-237.10219524,8.034e-05,2]
[326843336,1715508632444,-535.28534802,8.034e-05,2]
[326843337,1715508632454,-1063.06077755,8.034e-05,2]
[326843338,1715508632463,-540.45459162,8.035e-05,2]
[326843339,1715508632472,-155.0,8.035e-05,2]
[326843340,1715508632482,-262.86247652,8.035e-05,2]
[326843341,1715508632491,-321.98637793,8.035e-05,2]
[326843342,1715508632501,-370.82893179,8.036e-05,2]
[326843343,1715508632510,-35335.7117512,8.036e-05,2]
[326843344,1715508632519,-321.98637792,8.037e-05,2]
[326843345,1715508632530,-3087.54678534,8.037e-05,2]
[326843346,1715508632539,-4424.88144007,8.037e-05,2]
[326843347,1715508632549,-2220.53511034,8.038e-05,2]
[326843348,1715508632558,-321.98637792,8.038e-05,2]
[326843349,1715508632569,-150.0,8.041e-05,2]
[326843350,1715508632578,-150.0,8.041e-05,2]
[326843351,1715508632587,-4739.38262032,8.047e-05,2]
[326843352,1715508632597,-1788.03912655,8.048e-05,2]
[326843353,1715508632607,-423.02647658,8.048e-05,2]
[326843354,1715508632618,-8927.68414901,8.072e-05,2]
[326843355,1715508632627,-2283.304206,8.178e-05,2]
[326843356,1715508632637,-167.96,8.219e-05,2]
[326843357,1715508632648,-210.0,8.845e-05,2]
[326843358,1715508632657,-1786.23,9.196e-05,2]
[326843359,1715508632667,-167.96,9.487e-05,2]
[326843360,1715508632677,-23900.0,9.556e-05,2]
[326843361,1715508632688,-324.47,9.586e-05,2]
[326843362,1715508632698,-9675.42,9.598e-05,2]
[326843364,1715508632708,-250.0,9.61e-05,2]
[326843366,1715508632717,-324.47,9.612e-05,2]
[326843368,1715508632727,-324.47,9.638e-05,2]
[326843370,1715508632736,-324.47,9.665e-05,2]
[326843371,1715508632746,-499.99,9.67e-05,2]
[326843372,1715508632755,-224.99,9.67e-05,2]
[326843373,1715508632765,-39888.22,9.67e-05,2]
[326843374,1715508632775,-324.47,9.691e-05,2]
[326843375,1715508632785,-594.62,9.717e-05,2]
[326843376,1715508632795,-324.47,9.717e-05,2]
[326843377,1715508632806,-950.57,9.722e-05,2]
[326843378,1715508632818,-324.47,9.744e-05,2]
[326843379,1715508632828,-153.42,9.762e-05,2]
[326843380,1715508632837,-324.47,9.77e-05,2]
[326843381,1715508632847,-200.0,9.779e-05,2]
[326843382,1715508632857,-324.47,9.796e-05,2]
[326843383,1715508632866,-324.47,9.822e-05,2]
[326843384,1715508632875,-10305.37,9.841e-05,2]
[326843385,1715508632886,-324.47,9.849e-05,2]
[326843386,1715508632898,-480.0,9.861e-05,2]
[326843387,1715508632908,-324.47,9.875e-05,2]
[326843388,1715508632917,-324.47,9.901e-05,2]
[326843389,1715508632928,-324.47,9.928e-05,2]
[326843390,1715508632937,-324.47,9.954e-05,2]
[326843391,1715508632947,-251.07,9.964e-05,2]
[326843392,1715508632956,-324.47,9.98e-05,2]
[326843393,1715508632965,-155.0,0.00010006,2]
[326843394,1715508632975,-324.47,0.00010007,2]
[326843395,1715508632984,-324.47,0.00010033,2]
[326843396,1715508632993,-324.47,0.00010059,2]
[326843397,1715508633002,-1914.34,0.00010065,2]
[326843398,1715508633012,-324.47,0.00010085,2]
[326843399,1715508633022,-1431.18,0.00010107,2]
[326843400,1715508633032,-167.96,0.00010754,2]
[326843401,1715508633041,-480.0,0.00011094,2]
[326843402,1715508633050,-250.0,0.00011113,2]
[326843403,1715508633059,-168.82,0.00011201,2]
[326843404,1715508633068,-251.07,0.00011209,2]
[326843405,1715508633077,-520.0,0.00011459,2]
[326843406,1715508633086,-5798.63959885,0.00011495,2]
[326843407,1715508633095,-182.0,0.00011705,2]
[326843408,1715508633104,-40006.05374009,0.00012,2]
[326843409,1715508633114,-155.0,0.0001202,2]
[326843410,1715508633123,-167.96,0.00012021,2]
[326843411,1715508633132,-480.0,0.00012326,2]
[326843412,1715508633141,-1296.53199475,0.00012329,2]
[326843413,1715508633151,-251.07,0.00012455,2]
[326843414,1715508633160,-80903.0465522,0.000126,2]
[326843415,1715508633169,-313.73,0.00012603,2]
[326843416,1715508633178,-6408.49246702,0.00012719,2]
[326843417,1715508633187,-1127.00508825,0.0001272,2]
[326843418,1715508633196,-3230.66594355,0.0001274,2]
[326843419,1715508633205,-1563.06983317,0.00012766,2]
[326843420,1715508633214,-1914.34,0.00012805,2]
[326843421,1715508633223,-22815.20345108,0.00012848,2]
[326843422,1715508633232,-1128.09592112,0.0001288,2]
[326843423,1715508633241,-166.33744184,0.0001288,2]
[326843424,1715508633250,-197.19390969,0.0001288,2]
[326843425,1715508633260,-193.87795131,0.0001288,2]
[326843426,1715508633268,-323.13793338,0.0001288,2]
[326843427,1715508633279,-212.7079049,0.0001288,2]
[326843428,1715508633287,-1128.09592104,0.00012882,2]
[326843429,1715508633296,-200.0,0.00012883,2]
[326843430,1715508633305,-1128.09592104,0.00012884,2]
[326843431,1715508633315,-1128.09592104,0.00012885,2]
[326843432,1715508633324,-1000.0,0.00012886,2]
[326843433,1715508633333,-500.0,0.00012886,2]
[326843434,1715508633342,-1128.09592104,0.00012887,2]
[326843435,1715508633351,-1128.09592104,0.00012889,2]
[326843436,1715508633360,-212.70790489,0.0001289,2]
[326843437,1715508633369,-1128.09592104,0.00012891,2]
[326843438,1715508633378,-520.0,0.00012892,2]
[326843439,1715508633388,-1128.09592104,0.00012893,2]
[326843440,1715508633397,-1128.09592104,0.00012895,2]
[326843441,1715508633407,-1128.09592104,0.00012896,2]
[326843442,1715508633416,-1128.09592104,0.00012898,2]
[326843443,1715508633425,-1128.09592104,0.000129,2]
[326843444,1715508633434,-291.37334324,0.000129,2]
[326843445,1715508633443,-291.37334324,0.000129,2]
[326843446,1715508633452,-291.37334324,0.000129,2]
[326843447,1715508633461,-291.37334324,0.000129,2]
[326843448,1715508633470,-291.37334324,0.000129,2]
[326843449,1715508633479,-291.37334324,0.000129,2]
[326843450,1715508633488,-291.37334324,0.000129,2]
[326843451,1715508633498,-291.37334324,0.000129,2]
[326843452,1715508633507,-323.13793338,0.000129,2]
[326843453,1715508633516,-150.0,0.00012918,2]
[326843454,1715508633526,-151.73,0.0001297,2]
[326843455,1715508633538,-165.17255466,0.0001297,2]
[326843456,1715508633548,-2360.54611263,0.00012978,2]
[326843457,1715508633558,-168.44065273,0.00012978,2]
[326843458,1715508633567,-361.30312926,0.00012978,2]
[326843459,1715508633577,-645.13621504,0.00012978,2]
[326843460,1715508633588,-199.877,0.00012978,2]
[326843461,1715508633597,-208.85153682,0.00012978,2]
[326843462,1715508633607,-155.14098729,0.00012978,2]
[326843463,1715508633617,-316.44060217,0.00012978,2]
[326843464,1715508633626,-726.23771159,0.00012978,2]
[326843465,1715508633635,-158.26245048,0.00012978,2]
[326843466,1715508633644,-265.94745897,0.00012978,2]
[326843467,1715508633653,-1259.40401146,0.00012978,2]
[326843468,1715508633663,-2365.15239822,0.00012978,2]
[326843469,1715508633672,-155.0,0.00012978,2]
[326843470,1715508633681,-155.0,0.00012978,2]
[326843471,1715508633690,-155.0,0.00012978,2]
[326843472,1715508633700,-2184.52280122,0.00012978,2]
[326843473,1715508633710,-377.72952639,0.00012978,2]
[326843474,1715508633719,-237.2941111,0.00012978,2]
[326843475,1715508633728,-1034.99221284,0.00012978,2]
[326843476,1715508633737,-413.18512476,0.00012978,2]
[326843477,1715508633746,-190.46950754,0.00012978,2]
[326843478,1715508633755,-788.57106562,0.00012978,2]
[326843479,1715508633765,-938.73301384,0.00012978,2]
[326843480,1715508633774,-268.42254375,0.00012978,2]
[326843481,1715508633787,-1003.4058341,0.00012979,2]
[326843482,1715508633797,-302.71841237,0.00012979,2]
[326843483,1715508633809,-3047.31633056,0.00012979,2]
[326843484,1715508633819,-155.20185442,0.00012979,2]
[326843485,1715508633828,-175.90678897,0.00012979,2]
[326843486,1715508633838,-3025.92588209,0.00012979,2]
[326843487,1715508633847,-383927.63169369,0.0001298,2]
[326843488,1715508633861,-517.0,0.0001298,2]
[326843489,1715508634837,-2649.6225874,0.0001298,2]
[326843490,1715508634849,-1078.35103245,0.0001298,2]
[326843491,1715508634861,-3268.49716594,0.0001298,2]
[326843492,1715508634901,-53369.47516183,0.0001298,2]
[326843493,1715508634912,-2784.48495281,0.0001298,2]
[326843503,1715508638452,-5558.95156203,8.031e-05,2]
[326843504,1715508638462,-10972.93643675,8.032e-05,2]
[326843505,1715508638472,-212.70790489,0.000129,2]
[326843506,1715508638483,-82045.09740252,0.0001298,2]
[326843507,1715508638492,-732272.83630166,0.0001298,2]
[326843508,1715508638552,-2268.08178098,0.0001298,2]
[326843519,1715508640568,-1026.35000001,0.0001298,2]
[326843520,1715508642973,-326.025,0.0001298,2]
[326843521,1715508643044,-27401.87636377,0.0001298,2]
[326843522,1715508643058,-2194.98494926,0.0001298,2]
[326843523,1715508643071,-6143.75419523,0.0001298,2]
[326843524,1715508643086,-43720.58253466,0.0001298,2]
[326843657,1715508646635,-629.38092231,0.00012979,2]
[326843658,1715508646745,-672.35000001,0.00012979,2]
[326843659,1715508646756,-1571.42351399,0.00012979,2]
[326843660,1715508646765,-8362.96245245,0.00012979,2]
[326843661,1715508646774,-1005.34262195,0.00012979,2]
[326843662,1715508646784,-1800.29072716,0.00012979,2]
[326843663,1715508646865,-420.97482206,0.00012979,2]
[326843664,1715508646874,-370.82893179,0.00012979,2]
[326843665,1715508646883,-155.0,0.00012979,2]
[326843666,1715508646892,-1466.94624615,0.00012979,2]
[326843667,1715508646904,-1449.18620105,0.00012979,2]
[326843668,1715508646913,-8370.66429895,0.0001298,2]
[326843669,1715508646925,-7124.4,0.0001298,2]
[326843670,1715508646936,-579.46059386,0.0001298,2]
[326843671,1715508880363,-152.0,0.00023244,30]
[326843672,1715508880422,-152.0,0.00023414,31]
[326843673,1715508880479,-152.0,0.00023583,32]
[326843674,1715508880505,-152.0,0.00023753,33]
[326843675,1715508880568,-152.0,0.00023922,34]
[326843676,1715508880595,-152.0,0.00024092,35]
[326843677,1715508880651,-152.0,0.00024261,36]
[326843678,1715508881002,-152.0,0.00024431,37]
[326843679,1715508881027,-152.0,0.000246,38]
[326843680,1715508881902,-2485.545037,0.00025,30]
[326843681,1715508882000,-360.53875657,0.000275,30]
[326843682,1715508882028,-162.44183883,0.000285,120]
[326843683,1715508882057,-1208.0,0.00029537,30]
[326843684,1715508882638,-2965.7968536,0.0003,30]
[326843685,1715508882664,-341.75770525,0.0003,120]
[326843686,1715508882688,-323.12276815,0.0003,120]
[326843687,1715508882734,-205.6729591,0.0003258,30]
[326843688,1715508882760,-750.0,0.00032876,30]
[326843689,1715508882784,-765.98141313,0.00032876,30]
[326843690,1715508882809,-13051.39352668,0.000329,30]
[326843691,1715508882834,-256395.76303497,0.000329,30]
[326843692,1715508882864,-22352.20552433,0.00035,30]
[326843693,1715508882893,-3000.0,0.00035,120]
[326843694,1715508882919,-450.0,0.0003502,30]
[326843695,1715508882948,-1437.97,0.0003589,120]
[326843696,1715508882976,-289.31,0.0003589,120]
[326843697,1715508883003,-2204.0,0.00037,60]
[326843698,1715508883027,-450.0,0.000375,30]
[326843699,1715508883053,-5000.0,0.000379,120]
[326843700,1715508883076,-258.35867096,0.00038,30]
[326843701,1715508883099,-184.67675714,0.00038,120]
[326843702,1715508883123,-5021.58600442,0.0003819,120]
[326843703,1715508883146,-300.0,0.00038397,120]
[326843704,1715508883170,-279.03629977,0.000384,33]
[326843705,1715508883195,-883.62816005,0.000389,30]
[326843706,1715508883218,-1000.0,0.00038904,120]
[326843707,1715508883244,-614.42568982,0.00039,30]
[326843708,1715508883268,-22604.57432,0.00039,120]
[326843709,1715508883293,-732.17047525,0.00039,120]
[326843710,1715508883315,-432.85530341,0.00039,30]
[326843711,1715508883338,-417.24014697,0.0003915,120]
[326843712,1715508883362,-317.81249964,0.000398,60]
[326843713,1715508883385,-450.33485316,0.0003998,30]
[326843714,1715508883411,-50000.0,0.0004,30]
[326843715,1715508883435,-922.07,0.0004,30]
[326843716,1715508883457,-477.12749073,0.0004,30]
[326843717,1715508883482,-990.98801212,0.0004,120]
[326843718,1715508883506,-750.71717732,0.0004,30]
[326843719,1715508883528,-815.57405807,0.0004,30]
[326843720,1715508883551,-1000.0,0.0004,120]
[326843721,1715508883573,-554.75392762,0.0004,30]
[326843722,1715508883596,-898.88267213,0.0004,120]
[326843723,1715508883620,-2663.14783639,0.0004,60]
[326843724,1715508883643,-33819.478005,0.0004,60]
[326843725,1715508883666,-214.3017285,0.0004,30]
[326843726,1715508883689,-177.8313226,0.0004,60]
[326843727,1715508883713,-486.35301282,0.0004,120]
[326843728,1715508883738,-250.0,0.0004,90]
[326843729,1715508883762,-250.0,0.0004,90]
[326843730,1715508883787,-213.5,0.0004,90]
[326843731,1715508883810,-2000.0,0.0004,30]
[326843732,1715508883834,-658.0,0.0004,30]
[326843733,1715508883861,-1003.34,0.0004,120]
[326843734,1715508883887,-170.28,0.0004,120]
[326843735,1715508883910,-316.0,0.0004,30]
[326843736,1715508883936,-486.93753868,0.0004,120]
[326843737,1715508883961,-320.1127975,0.0004,30]
[326843738,1715508883985,-372.31141414,0.0004,120]
[326843739,1715508884009,-200.0,0.0004,120]
[326843740,1715508884033,-451.9853286,0.0004,90]
[326843741,1715508884059,-284.53785148,0.0004,120]
[326843742,1715508884088,-823.83,0.0004,120]
[326843743,1715508884113,-331.92,0.0004,120]
[326843744,1715508884137,-1562.19,0.0004,120]
[326843745,1715508884161,-651.77,0.0004,120]
[326843746,1715508884186,-3000.0,0.00040073,120]
[326843747,1715508884209,-5000.0,0.0004019,120]
[326843748,1715508884236,-11021.32509457,0.000402,120]
[326843749,1715508884259,-11021.32509454,0.000402,120]
[326843750,1715508884282,-11021.32509454,0.000402,120]
[326843751,1715508884305,-11021.32509454,0.000402,120]
[326843752,1715508884329,-11021.32509454,0.000402,120]
[326843753,1715508884353,-2425.5,0.00040327,79]
[326843754,1715508884377,-584.72298932,0.0004088,120]
[326843755,1715508884400,-1689.76459053,0.000409,60]
[326843756,1715508884426,-177.87858972,0.000409,60]
[326843757,1715508884448,-907.81251048,0.00040993,120]
[326843758,1715508884476,-50000.0,0.00041,31]
[326843759,1715508884502,-650.0,0.00041,120]
[326843760,1715508884526,-2078.45906179,0.00041,60]
[326843761,1715508884551,-3249.42838615,0.00041,30]
[326843762,1715508884576,-2000.0,0.00041,30]
[326843763,1715508884600,-2358.58240411,0.00041,60]
[326843764,1715508884624,-196.46285805,0.00041,30]
[326843765,1715508884648,-5601.0,0.00041,30]
[326843766,1715508884672,-1059.3257578,0.00041041,120]
[326843767,1715508884695,-2000.0,0.00041095,90]
[326843768,1715508884720,-2000.0,0.00041095,90]
[326843769,1715508884745,-2000.0,0.00041095,90]
[326843770,1715508884769,-2000.0,0.00041095,90]
[326843771,1715508885038,-745.14396535,0.00041095,90]
[326843772,1715508885064,-2000.0,0.00041095,90]
[326843773,1715508885088,-2000.0,0.00041095,90]
[326843774,1715508885113,-2000.0,0.00041095,90]
[326843775,1715508885140,-2000.0,0.00041095,90]
[326843776,1715508885163,-1058.64070162,0.00041095,90]
[326843777,1715508885188,-510.0,0.00041095,120]
[326843778,1715508885217,-1000.0,0.00041096,30]
[326843779,1715508885242,-1000.0,0.000413,30]
[326843780,1715508885267,-1000.0,0.000413,30]
[326843781,1715508885289,-1000.0,0.000413,30]
[326843782,1715508885315,-1000.0,0.000413,30]
[326843783,1715508885338,-1000.0,0.000413,30]
[326843784,1715508885362,-715.56,0.000413,30]
[326843785,1715508885386,-363.09977033,0.00041354,30]
[326843786,1715508885410,-500.0,0.00041369,31]
[326843787,1715508885434,-500.0,0.00041369,31]
[326843788,1715508885460,-500.0,0.00041369,31]
[326843789,1715508885483,-500.0,0.00041369,31]
[326843790,1715508885508,-500.0,0.00041369,31]
[326843791,1715508885531,-500.0,0.00041369,31]
[326843792,1715508885556,-500.0,0.00041369,31]
[326843793,1715508885579,-500.0,0.00041369,31]
[326843794,1715508885603,-500.0,0.00041369,31]
[326843795,1715508885626,-500.0,0.00041369,31]
[326843796,1715508885650,-500.0,0.00041369,31]
[326843797,1715508885674,-500.0,0.00041369,31]
[326843798,1715508885697,-500.0,0.00041369,31]
[326843799,1715508885720,-500.0,0.00041369,31]
[326843800,1715508885745,-500.0,0.00041369,31]
[326843801,1715508885768,-500.0,0.00041369,31]
[326843802,1715508885792,-500.0,0.00041369,31]
[326843803,1715508885816,-500.0,0.00041369,31]
[326843804,1715508885839,-500.0,0.00041369,31]
[326843805,1715508885863,-500.0,0.00041369,31]
[326843806,1715508885887,-500.0,0.00041369,31]
[326843807,1715508885911,-500.0,0.00041369,31]
[326843808,1715508885936,-500.0,0.00041369,31]
[326843809,1715508885961,-500.0,0.00041369,31]
[326843810,1715508885986,-500.0,0.00041369,31]
[326843811,1715508886009,-500.0,0.00041369,31]
[326843812,1715508886034,-500.0,0.00041369,31]